Cogmind - Beta 14 @@@ ROGUE MODE // 2024.09.28 @ 10:06:27 Player: Minty Result: Destroyed by S-10 Pest with Light Assault Rifle Performance ------------- Evolutions (0) 0 Regions Visited (3) 600 Robots Destroyed (29) 145 Value Destroyed (806) 806 Prototype IDs (1) 20 Alien Tech Used (0) 0 Bonus (0) 0 TOTAL SCORE: 1571 Bonus ------- None Cogmind --------- Core Integrity 0/250 Matter 180/300 Energy 278/280 System Corruption 0% Temperature Cool (0) Movement Rolling (80) Location -10/Subcaves Parts ------- > --- POWER (1) -------- Heavy Ion Engine > --- PROPULSION (2) --- Wheel Wheel > --- UTILITY (2) ------ (None) > --- WEAPON (2) ------- Improved Light Cannon Battle Cannon > --- INVENTORY (5) ---- Small Storage Unit Medium Matter Pod (100) Medium Matter Pod (89) Utility Shielding Multitool Peak State ------------ > --- POWER ------------ Heavy Ion Engine > --- PROPULSION ------- Wheel Wheel > --- UTILITY ---------- Scrap Shield > --- WEAPON ----------- Improved Light Cannon Improved Light Cannon > --- INVENTORY -------- Medium Matter Pod Utility Shielding Multitool [Rating: 13] Favorites ----------- Power Heavy Ion Engine Engine Heavy Ion Engine Propulsion Light Treads Treads Light Treads Leg Aluminum Leg Wheel Wheel Utility Small Storage Unit Storage Small Storage Unit Protection Scrap Shield Weapon Improved Light Cannon Energy Gun Medium Laser Ballistic Gun Assault Rifle Ballistic Cannon Improved Light Cannon Build | -11 -10 -10 -10 ------- Run | Yrd Mat Min Sub Slots Evolved . | . . . . Power . | . . . . Propulsion . | . . . . Utility . | . . . . Weapon . | . . . . Parts Attached 14 | . 7 . 7 Power 2 | . 1 . 1 Engine 2 | . 1 . 1 Core . | . . . . Reactor . | . . . . Propulsion 4 | . 2 . 2 Treads 2 | . 2 . . Leg . | . . . . Wheel 2 | . . . 2 Hover . | . . . . Flight . | . . . . Utility 3 | . 2 . 1 Device . | . . . . Storage 2 | . 2 . . Processor . | . . . . Hackware . | . . . . Protection 1 | . . . 1 Artifact . | . . . . Weapon 5 | . 2 . 3 Energy Gun . | . . . . Energy Cannon . | . . . . Ballistic Gun . | . . . . Ballistic Cannon 5 | . 2 . 3 Launcher . | . . . . Special Weapon . | . . . . Impact Weapon . | . . . . Slashing Weapon . | . . . . Piercing Weapon . | . . . . Special Melee Weapon . | . . . . Unidentified Prototypes 1 | . 1 . . Parts Lost 3 | . . . 3 Power . | . . . . Propulsion 2 | . . . 2 Utility 1 | . . . 1 Weapon . | . . . . Highest Loss Streak 2 | . . . 2 To Critical Strikes . | . . . . Average Slot Usage (%) 97 | . 93 100 95 Engine 14 | . 14 14 14 Treads 23 | . 22 28 19 Wheel 3 | . . . 7 Storage 23 | . 22 28 21 Protection 1 | . . . 3 Ballistic Cannon 27 | . 23 28 28 Peak Build Rating 13 | . 12 12 13 Average Rating 11 | . 10 12 12 On Entrance 9 | 6 6 12 12 Naked Turns . | . . . . Heaviest Build 34 | 14 23 23 34 Greatest Support 40 | 20 40 40 40 Greatest Overweight (x) 1 | . 1 . 1 Average Overweight (x) . | . . . . Largest Inventory Capacity 8 | . 8 8 8 Average Capacity 7 | . 8 8 7 Most Carried 8 | . 8 8 8 Average Carried 7 | . 7 8 7 Final Capacity 8 | 8 8 8 5 Final Carried 8 | 6 8 8 5 Class Distribution -------------------- 100% | Mutant Dominant Class ---------------- Mutant | -10/Materials Mutant | -10/Mines Mutant | -10/Subcaves Resources | -11 -10 -10 -10 ----------- Run | Yrd Mat Min Sub Matter Collected 1096 | 182 341 190 383 Remotely . | . . . . Salvage Created 705 | . 278 163 264 Parts 47 | . 20 7 20 Haulers Intercepted 1 | . 1 . . Recyclers Shooed . | . . . . Parts Field Recycled . | . . . . Retrieved Matter . | . . . . Parts Self-Destructed 7 | . . . 7 Prevented . | . . . . Kills | -11 -10 -10 -10 ------- Run | Yrd Mat Min Sub Combat Hostiles Destroyed 25 | . 7 5 13 Cannons 25 | . 7 5 13 Classes Destroyed 7 | . 5 . 2 Builder 1 | . 1 . . Hauler 1 | . 1 . . Recycler 2 | . 1 1 . Swarmer 8 | . 3 3 2 Grunt 7 | . 4 2 1 Artisan 1 | . . . 1 Subdweller 10 | . . . 10 Best Kill Streak 6 | . 6 5 3 Combat Bots Only 5 | . 3 5 3 Max Kills in Single Turn 2 | . 1 2 1 Gunslinging . | . . . . Exploded . | . . . . Melee . | . . . . Uniques/NPCs Destroyed . | . . . . Combat | -11 -10 -10 -10 -------- Run | Yrd Mat Min Sub Hostile Shots Fired 199 | . 68 10 121 Missed 63 | . 23 . 40 Damage Taken 1512 | . 404 106 1002 Core 254 | . 73 . 181 Absorbed by Shields . | . . . . Core Remaining (%) 100 | 100 . . . Volleys Fired 83 | . 20 9 54 Largest 2 | . 2 2 2 Hottest 78 | . 78 78 78 Shots Fired 166 | . 40 18 108 Gun . | . . . . Cannon 166 | . 40 18 108 Launcher . | . . . . Special . | . . . . Kinetic 166 | . 40 18 108 Thermal . | . . . . Explosive . | . . . . Electromagnetic . | . . . . Robot Hit Streak 12 | . 6 6 12 Robot Miss Streak 6 | . 4 1 6 Penetration Max . | . . . . Secondary Targets . | . . . . Shots Hit Robots 89 | . 21 11 57 Core Hits 42 | . 11 8 23 Critical Kills . | . . . . Critical Parts Destroyed . | . . . . Critical Strikes 6 | . 3 . 3 Blast 6 | . 3 . 3 Melee Attacks . | . . . . Impact . | . . . . Slashing . | . . . . Piercing . | . . . . Sneak Attacks . | . . . . Combat Hostiles . | . . . . Follow-up Attacks . | . . . . Damage Inflicted 1993 | . 434 277 1282 Guns . | . . . . Cannons 1987 | . 434 271 1282 Explosions . | . . . . Melee . | . . . . Ramming 6 | . . 6 . Kinetic 1987 | . 434 271 1282 Thermal . | . . . . Explosive . | . . . . Electromagnetic . | . . . . Impact . | . . . . Slashing . | . . . . Piercing . | . . . . Highest Corruption . | . . . . Average Corruption . | . . . . Corruption Purged . | . . . . Corruption Blocked . | . . . . Overload Shots . | . . . . Overflow Damage 12 | . 3 2 7 Projectiles 12 | . 3 2 7 Explosions . | . . . . Melee . | . . . . Knockbacks 15 | . 4 4 7 Impact . | . . . . Kinetic 13 | . 4 3 6 Secondary 2 | . . 1 1 Self-Inflicted Damage . | . . . . Shots . | . . . . Rammed 2 | . . 2 . Targets Rammed 2 | . . 2 . Kicked . | . . . . Crushed . | . . . . Highest Temperature 165 | . 129 165 5 Average Temperature 53 | . 49 62 5 Received Heat Transfer 237 | . 84 39 114 Siege Activations . | . . . . Robots Corrupted . | . . . . Combat Hostiles . | . . . . Parts Fried . | . . . . Impact Corruptions . | . . . . Robots Melted . | . . . . Combat Hostiles . | . . . . Parts Melted . | . . . . Heat Transferred . | . . . . Parts Sabotaged . | . . . . Parts Stolen . | . . . . Parts Stripped . | . . . . Power Chain Reactions . | . . . . Alert | -11 -10 -10 -10 ------- Run | Yrd Mat Min Sub Peak Influence 274 | . 274 237 . Initial 106 | . . 106 . Average 116 | . 125 112 . Maximum Alert Level 1 | . 1 1 . Low Security (%) 69 | . 64 71 . Level 1 30 | . 35 28 . Level 2 . | . . . . Level 3 . | . . . . Level 4 . | . . . . Level 5 . | . . . . High Security . | . . . . Max Security . | . . . . Squads Dispatched 2 | . 2 . . Investigation . | . . . . Extermination . | . . . . Reinforcement 2 | . 2 . . Assault . | . . . . Garrison . | . . . . Intercept . | . . . . Searches Triggered . | . . . . Construction Impeded . | . . . . Haulers Reinforced . | . . . . Active Scanning Responses . | . . . . Cargo Convoy Interrupts . | . . . . Stealth | -11 -10 -10 -10 --------- Run | Yrd Mat Min Sub Distress Signals . | . . . . Communications Jammed . | . . . . Distress Signals . | . . . . Times Spotted 37 | . 16 5 16 Peak Tracking Total 7 | . 7 5 6 Tactical Retreats 2 | . . . 2 Traps | -11 -10 -10 -10 ------- Run | Yrd Mat Min Sub Traps Triggered 1 | . . . 1 Indirectly . | . . . . Trap Hack Attempts . | . . . . Triggered . | . . . . Disarmed . | . . . . Reprogrammed . | . . . . Reused . | . . . . Traps Extracted . | . . . . Installed 3 | . . 3 . Triggered . | . . . . Machines | -11 -10 -10 -10 ---------- Run | Yrd Mat Min Sub Machines Disabled 4 | . 3 . 1 Max in Single Turn 2 | . 2 . 1 Machines Repaired . | . . . . Machines Dismantled . | . . . . Machines Sabotaged . | . . . . Overloaded Fab Kills . | . . . . Hacking | -11 -10 -10 -10 --------- Run | Yrd Mat Min Sub Machines Accessed 1 | . 1 . . Terminals 1 | . 1 . . Fabricators . | . . . . Repair Stations . | . . . . Recycling Units . | . . . . Scanalyzers . | . . . . Garrison Access . | . . . . Total Hacks 3 | . 3 . . Successful 2 | . 2 . . Failed 1 | . 1 . . Catastrophic . | . . . . Database Lockouts . | . . . . Manual 2 | . 2 . . Terminals 3 | . 3 . . Fabricators . | . . . . Repair Stations . | . . . . Recycling Units . | . . . . Scanalyzers . | . . . . Garrison Access . | . . . . Terminal Hacks 1 | . 1 . . Locate Traps 1 | . 1 . . Fabricator Hacks . | . . . . Repair Station Hacks . | . . . . Recycling Unit Hacks . | . . . . Scanalyzer . | . . . . Garrison Access Hacks . | . . . . Unauthorized Hacks 1 | . 1 . . Terminals 1 | . 1 . . Botnet 1 | . 1 . . Fabricators . | . . . . Repair Stations . | . . . . Recycling Units . | . . . . Scanalyzers . | . . . . Garrison Access . | . . . . Data Cores Recovered . | . . . . Used . | . . . . Hacking Detections 1 | . 1 . . Full Trace Events . | . . . . Feedback Events . | . . . . Feedback Blocked . | . . . . Robot Schematics Acquired . | . . . . Robots Built . | . . . . Authchips . | . . . . Time . | . . . . Total Robot Build Rating . | . . . . Part Schematics Acquired . | . . . . Parts Built . | . . . . Authchips . | . . . . Time . | . . . . Total Part Build Rating . | . . . . Parts Repaired . | . . . . Time . | . . . . Parts Recycled . | . . . . Recycled Matter . | . . . . Retrieved Matter . | . . . . Retrieved Components . | . . . . Parts Scanalyzed . | . . . . Part Schematics Acquired . | . . . . Parts Damaged . | . . . . Bothacking | -11 -10 -10 -10 ------------ Run | Yrd Mat Min Sub Used RIF Installer . | . . . . Robots Hacked . | . . . . Non-combat . | . . . . Combat . | . . . . Robot Hacks Applied . | . . . . Relay Couplers Released . | . . . . Fabnet Peak Effective % . | . . . . Robots Rewired . | . . . . Allies Hacked . | . . . . Hacks Repelled . | . . . . Allies | -11 -10 -10 -10 -------- Run | Yrd Mat Min Sub Total Allies . | . . . . Largest Group . | . . . . Highest-Rated Group . | . . . . Highest-Rated Ally . | . . . . Total Orders . | . . . . Ally Attacks . | . . . . Total Damage . | . . . . Kills . | . . . . Allies Corrupted . | . . . . Allies Melted . | . . . . Intel | -11 -10 -10 -10 ------- Run | Yrd Mat Min Sub Robot Analysis Total . | . . . . Derelict Logs Recovered 1 | . . 1 . Drone Launches . | . . . . Drone Recoveries . | . . . . Exploration | -11 -10 -10 -10 ------------- Run | Yrd Mat Min Sub Turns Passed 2112 | . 319 752 1041 Spaces Moved 1057 | 1 163 272 621 Core . | . . . . Treads 801 | . 117 272 412 Legs 47 | 1 46 . . Wheels 209 | . . . 209 Hover . | . . . . Flight . | . . . . Fastest Speed 80 | 120 120 160 80 Average Speed 145 | 120 149 160 138 Slowest Speed 190 | 120 190 160 160 Overloaded Moves . | . . . . Propulsion Burnouts . | . . . . Robots Hopped . | . . . . Cave-ins Triggered . | . . . . Exploration Rate (%) 36 | 2 30 49 65 Regions Visited 3 Branch Regions 2 Pre-discovered Areas . | . . . . Known Exits Taken . | . . . . Unknown Exits Taken 3 | 1 1 1 . Scrap Searched 3 | . . 1 2 Spaces Dug . | . . . . Terrain Destroyed 5 | . 3 1 1 Melee . | . . . . Projectile 5 | . 3 1 1 AOE . | . . . . Terrain Rammed . | . . . . Walls Destroyed . | . . . . Machines Disabled . | . . . . Actions | -11 -10 -10 -10 --------- Run | Yrd Mat Min Sub Total 1474 | . 204 570 700 Wait 288 | . . 285 3 Move 1054 | . 162 271 621 Hop . | . . . . Pick Up 13 | . 8 . 5 Fast Attach 1 | . 1 . . Attach 7 | . 2 . 5 Detach . | . . . . Swap 6 | . 4 . 2 Drop 15 | . 7 . 8 Fire 83 | . 20 9 54 Melee . | . . . . Ram . | . . . . Kick . | . . . . Crush 2 | . . 2 . Escape Stasis . | . . . . Rewire . | . . . . Trap 3 | . . 3 . Miscellaneous 2 | . . . 2 Route ------- -11/Scrapyard -10/Materials -10/Mines (discovered 2 exits: [*Mat] / [*Sub]) -10/Subcaves (discovered 1 exit: [*Mat]) History --------- Turn | Location | Event 1 | -11/Scrapyard | Discovered new exit (range 0) 1 | -11/Scrapyard | Entered Materials 189 | -10/Materials | Discovered new exit (range 16) 305 | -10/Materials | Build established: Mutant 320 | -10/Materials | Entered Mines 397 | -10/Mines | Met a Derelict bent on vengeance 524 | -10/Mines | Learned location of 1 exit from Materials 540 | -10/Mines | Found a hidden stash of uninstalled traps 658 | -10/Mines | Discovered new exit (range 15) 1067 | -10/Mines | Discovered new exit (range 4) 1072 | -10/Mines | Entered Subcaves 1341 | -10/Subcaves | Core integrity fell below 50% 1346 | -10/Subcaves | A swath of the cavern ceiling suddenly collapsed 1556 | -10/Subcaves | A swath of the cavern ceiling suddenly collapsed 1623 | -10/Subcaves | Core integrity fell below 20% 1685 | -10/Subcaves | Shifting Twisted Machinery released Sub. Power Source 1921 | -10/Subcaves | Disturbed a concealed Subdweller 2026 | -10/Subcaves | Shifting Twisted Machinery released Hvy. Battle Rifle 2029 | -10/Subcaves | Discovered new exit (range 13) 2074 | -10/Subcaves | Shifting Twisted Machinery released Sub. Machine Gun 2113 | -10/Subcaves | Destroyed by S-10 Pest with Light Assault Rifle Last Messages --------------- 02044_ TT-L2S(R) destroyed. 02047_ FL-U6E(R) knocked back. 02050_ FL-U6E(R) affixes Scrap Shield Fragment to Scrap Shield. 02050_ FL-U6E(R) knocked back. 02056_ FL-U6E(R) affixes Scrap Shield Fragment to Scrap Shield. 02059_ FL-U6E(R) destroyed. 02063_ Acquired 4 matter. 02064_ Acquired 44 matter. 02065_ Acquired 6 matter. 02067_ Dropped Imp. Light Cannon. 02068_ Acquired 4 matter. Sub. Machine Gun falls loose from the Twisted Machinery. 02088_ Destroyed Flight Unit. 02088_ S-10 Pest knocked back. 02094_ Destroyed Lgt. Ion Engine. 02094_ S-10 Pest destroyed. 02103_ Lgt. Assault Rifle fries itself beyond repair. 02104_ Scrap Shield destroyed. 02106_ S-10 Pest destroyed. 02109_ Destroyed Lgt. Ion Engine. Map ----- +----------------------------------------------------+ | | | | | | | ?????????????????????????????????????????????????? | | ?????????????????????????????????????????????????? | | ?????????????????????????????????????????????????? | | ?????????????????????????????????????????????????? | | ?????????????????????????????????????????????????? | | ?????????????????????????????????????????????????? | | ?????????????????????????????????????????????????? | | ?????????????????????????????????????????????????? | | ?????????????????????????????????????????????????? | | ?????????????????????????????????????????????????? | | ?????????????????????????????????????????????????? | | ?????????????????????????????????????????????????? | | ?????????????????????????????????????????????????? | | ?????????????????????????????????????????????????? | | ???????????????????????????????#####?????????????# | | ??????????????????????????###### ##??????????## | | ?????????????????????????##"[ #"#= ##??????#### | | ?????????????????????????# "" """ "######## | | ??????????????????????????#"##"""] %###"# ## # | | ?????????????????????????##"""#"" % # | | ?????????????????????????#% """" | | ????????????????????????## # # ## # # | | ????????????????????????#@% % ### ########## | | ??????????????????????# ####??????# #### | | ???????????????????< #????????# #??# | | ???????????????? # #; [" #???????# #??? | | ???????????????? ?###### # ##???????## ##??? | | ??????????????? ????????#s[ ###?????????###????? | | ????????????? #?????????#% s#??????????????????? | | ????????????# ???????????# %"#??????????????????? | | ??????????????????????????#%%%#??????????????????? | | ??????????????????????????# #??????????????????? | | ??????????????????????????# #??????????????????? | | ??????????????????????????# #??????????????????? | | ?????????????????????????? % ??????????????????? | | ?????????????????????????? ??????????????????? | | ??????????????????????????? ????????????????????? | | ?????????????????????????????????????????????????? | | ?????????????????????????????????????????????????? | | ?????????????????????????????????????????????????? | | ?????????????????????????????????????????????????? | | ?????????????????????????????????????????????????? | | ?????????????????????????????????????????????????? | | ?????????????????????????????????????????????????? | | ?????????????????????????????????????????????????? | | ?????????????????????????????????????????????????? | | ?????????????????????????????????????????????????? | +----------------------------------------------------+ Best States ------------- Heat Dissipation 25 Energy Generation 14 Energy Capacity 280 Matter Stores 400 Matter Capacity 400 Sight Range 16 Terrain Scan Density 10 Armor Coverage 800 Evasion (%) 55 Recoil Reduction 2 Item Schematics ----------------- None Robot Schematics ------------------ None Fabricated ------------ Nothing Alien Tech Used ----------------- None Achievements -------------- None Challenges ------------ None Game ------ Seed MicroImpactPrototype Manual? 0 Play Time 00:12:47 Cumulative 950.8 hours Start 2024.09.28 @ 09:42:40 End 2024.09.28 @ 10:06:27 Sessions 1 Manual Loads 0 Difficulty Rogue Special Mode None Game No. 1161 Rogue 881 Adventurer 124 Explorer 156 Win Type - Total 41 Types 28/0/8/3/1/0/0/1/0 Lore% 83 Gallery% 90 Achievement% 78 Wizard Run 0 Options --------- Layout 0 ASCII 0 Keyboard 1 Movement Numpad Keybinds 0 Fullscreen 2 Font 18/X11 Map View 76x50 Zoom Use 0% Tactical HUD 1 Map Filters NONE Filters NONE Steam 1 RUN: 6173f92a-c9d6-4259-9b03-01a5776fb6c3